bitfinex-derivatives/quotes_BNBF0:USTF0_20241225
["timestamp","ask_amount","ask_price","bid_price","bid_amount"]
[1735096269844,0.26122196,704.89,703.5,0.79529282]
[1735096270044,0.26122196,704.88,703.5,0.79529282]
[1735096270245,0.26122196,704.87,703.5,0.79529282]
[1735096270544,0.26122196,704.86,703.5,0.79529282]
[1735096270843,0.26122056,704.85,703.5,0.79529282]
[1735096271045,0.26122056,704.84,703.5,0.79529282]
[1735096271246,0.26122056,704.83,703.5,0.79529282]
[1735096271446,0.26122056,704.82,703.5,0.79529282]
[1735096271643,0.26122056,704.81,703.5,0.79529282]
[1735096271848,0.2612333,704.8,703.5,0.79529282]
[1735096272147,0.2612333,704.79,703.5,0.79529282]
[1735096272342,0.2612333,704.78,703.5,0.79529282]
[1735096272546,0.2612333,704.77,703.5,0.79529282]
[1735096272744,0.2612333,704.76,703.5,0.79529282]
[1735096272943,0.2612333,704.75,703.5,0.79529282]
[1735096273146,0.2612333,704.74,703.5,0.79529282]
[1735096273346,0.2612333,704.73,703.5,0.79529282]
[1735096273548,0.2612333,704.72,703.5,0.79529282]
[1735096273847,0.2612333,704.71,703.5,0.79529282]
[1735096274050,0.2612333,704.7,703.5,0.79529282]
[1735096274243,0.28363966,705.12,703.5,0.79529282]
[1735096274244,0.2612333,704.69,703.5,0.79529282]
[1735096274445,1.05538195,705.0,703.5,0.79529282]
[1735096274647,0.26123655,704.99,703.5,0.79529282]
[1735096276656,0.26123655,704.98,703.5,0.79529282]
[1735096276955,0.26123655,704.97,703.5,0.79529282]
[1735096277256,0.26127436,704.96,703.5,0.79529282]
[1735096277554,0.26127436,704.95,703.5,0.79529282]
[1735096277750,0.26127436,704.94,703.5,0.79529282]
[1735096277956,1.05538195,705.0,703.5,0.79529282]
[1735096278154,1.05538195,704.87,703.5,0.79529282]
[1735096278354,0.26130675,704.86,703.5,0.79529282]
[1735096278556,0.26130675,704.85,703.5,0.79529282]
[1735096278753,0.26130675,704.84,703.5,0.79529282]
[1735096278956,0.26130675,704.83,703.5,0.79529282]
[1735096279257,1.05538195,704.59,703.5,0.79529282]
[1735096279558,0.26130675,704.58,703.5,0.79529282]
[1735096279757,0.26130675,704.57,703.5,0.79529282]
[1735096279958,0.26130675,704.56,703.5,0.79529282]
[1735096280258,0.26130675,704.55,703.5,0.511]
[1735096280457,0.26130675,704.54,703.5,0.511]
[1735096280658,0.64097113,704.76,702.97,1.04078362]
[1735096280659,0.26130675,704.53,702.97,1.04078362]
[1735096280851,0.26130675,704.52,702.97,1.04078362]
[1735096281066,0.26130675,704.51,702.97,1.04078362]
[1735096281255,0.26130675,704.5,702.97,1.04078362]
[1735096281461,0.26130675,704.49,702.97,1.04078362]
[1735096281657,0.26130675,704.48,702.98,0.28450311]
[1735096281857,0.26130675,704.47,702.98,0.28450311]
[1735096282058,0.28374831,704.85,702.98,0.28450311]
[1735096282059,0.26130675,704.46,702.98,0.28450311]
[1735096282252,1.05538195,704.64,702.98,0.28450311]
[1735096282456,0.54526013,704.63,702.98,0.28450311]
[1735096282758,0.26142323,704.62,702.98,0.28450311]
[1735096282957,0.54526819,704.61,702.98,0.28450311]
[1735096283152,0.26142323,704.6,702.98,0.28450311]
[1735096283460,0.26142323,704.59,702.98,0.28450311]
[1735096283659,0.26142323,704.58,702.98,0.28450311]
[1735096283853,0.26142323,704.57,702.98,0.28450311]
[1735096284057,0.26142323,704.56,702.98,0.28450311]
[1735096284255,0.26142323,704.55,702.98,0.28450311]
[1735096284455,0.54529639,704.54,702.98,0.28450311]
[1735096284660,0.26142323,704.53,702.98,0.28450311]
[1735096284961,0.26142323,704.52,702.98,0.28450311]
[1735096285154,0.26142323,704.51,702.98,0.28450311]
[1735096285354,0.28387316,704.54,702.98,0.28450311]
[1735096285561,0.26145605,704.53,702.98,0.28450311]
[1735096285757,0.26145605,704.52,702.98,0.28450311]
[1735096285954,0.26145605,704.51,702.98,0.28450311]
[1735096286157,0.26145605,704.5,702.98,0.28450311]
[1735096286354,0.26145605,704.49,702.98,0.28450311]
[1735096286555,0.26145605,704.48,702.98,0.28450311]
[1735096286755,0.26145605,704.47,702.98,0.28450311]
[1735096286959,0.26145605,704.46,702.98,0.28450311]
[1735096287159,0.26145605,704.45,702.98,0.28450311]
[1735096287359,0.26145605,704.44,702.98,0.28450311]
[1735096287556,0.26145605,704.43,702.98,0.28450311]
[1735096287759,0.28387316,704.54,702.98,0.28450311]
[1735096287760,0.54537757,704.42,702.98,0.28450311]
[1735096287956,0.5453816,704.41,702.98,0.28450311]
[1735096288159,0.26145605,704.4,702.98,0.28450311]
[1735096288361,0.26148093,704.39,702.98,0.28450311]
[1735096288657,0.28392555,704.41,702.98,0.28450311]
[1735096288658,0.26148093,704.38,702.98,0.28450311]
[1735096288862,0.5454226,704.37,702.98,0.28450311]
[1735096289063,0.26148093,704.36,702.98,0.28450311]
[1735096289264,0.54542663,704.36,702.98,0.28450311]
[1735096289461,0.26148093,704.35,702.98,0.28450311]
[1735096290059,0.54543067,704.35,702.98,0.28450311]
[1735096290263,0.26148093,704.34,702.98,0.28450311]
[1735096291063,0.26148274,704.33,702.98,0.28450311]
[1735096291264,0.26148274,704.32,702.98,0.28450311]
[1735096291466,0.26148274,704.31,702.98,0.28450311]
[1735096291767,0.26148274,704.3,702.98,0.28450311]
[1735096291967,0.26148274,704.29,702.98,0.28450311]
[1735096292162,0.26148274,704.28,702.98,0.28450311]
[1735096292467,0.26148274,704.27,702.98,0.28450311]
[1735096292668,0.26148274,704.26,702.98,0.28450311]
[1735096292867,0.26148274,704.25,702.98,0.28450311]
[1735096293168,0.26148274,704.24,702.98,0.28450311]
[1735096293365,0.26148274,704.23,702.98,0.28450311]
[1735096293562,0.26148274,704.22,702.98,0.28450311]
[1735096293762,0.26148274,704.21,702.98,0.28450311]
[1735096293962,0.26148274,704.2,702.98,0.28450311]
[1735096294162,0.26148274,704.19,702.98,0.28450311]
[1735096294366,0.26148274,704.18,702.98,0.28450311]
[1735096294561,0.28394974,704.35,702.98,0.28450311]
[1735096294770,0.26149473,704.34,702.98,0.28450311]
[1735096295166,0.28394974,704.35,702.98,0.28450311]
[1735096295367,0.26149253,704.34,702.98,0.28450311]
[1735096295566,0.26149253,704.33,702.98,0.28450311]
[1735096295767,0.26149253,704.32,702.98,0.28450311]
[1735096295968,0.26149253,704.31,702.98,0.28450311]
[1735096296171,0.26149253,704.3,702.98,0.28450311]
[1735096296370,0.26149253,704.29,702.98,0.28450311]
[1735096296573,0.28397393,704.29,702.98,0.28450311]
[1735096296769,0.2615055,704.28,702.98,0.28450311]
[1735096296969,0.2615055,704.27,702.98,0.28450311]
[1735096297271,0.2615055,704.26,702.98,0.28450311]
[1735096297471,0.54549556,704.25,702.98,0.28450311]
[1735096297674,0.2615055,704.24,702.98,0.28450311]
[1735096298066,0.2615055,704.23,702.98,0.28450311]
[1735096298266,0.2615055,704.22,702.98,0.28450311]
[1735096298472,0.2615055,704.21,702.98,0.28450311]
[1735096298668,0.2615055,704.2,702.98,0.28450311]
[1735096298972,0.28399006,704.25,702.98,0.28450311]
[1735096298973,0.2615055,704.19,702.98,0.28450311]
[1735096299167,0.2615055,704.18,702.98,0.28450311]
[1735096299371,0.26146912,704.17,702.98,0.28450311]
[1735096299570,0.26146912,704.16,702.98,0.28450311]
[1735096299770,0.26146912,704.15,702.98,0.28450311]
[1735096299973,0.26146912,704.14,702.98,0.28450311]
[1735096300173,0.26146912,704.13,702.98,0.28450311]
[1735096300370,0.26146912,704.12,702.98,0.28450311]
[1735096300571,0.26146912,704.11,702.98,0.28450311]
[1735096300774,0.26146912,704.1,702.98,0.28450311]
[1735096300970,0.28399006,704.25,702.98,0.28450311]
[1735096301171,0.26143252,704.24,702.98,0.28450311]
[1735096302067,0.28399006,704.25,702.98,0.28450311]
[1735096302272,0.26144038,704.24,702.98,0.28450311]
[1735096302867,0.28399006,704.25,702.98,0.28450311]
[1735096303068,0.26143799,704.24,702.98,0.28450311]
[1735096305070,0.26141528,704.23,702.98,0.28450311]
[1735096305274,0.26141528,704.22,702.98,0.28450311]
[1735096305470,0.28399006,704.25,702.98,0.28450311]
[1735096305471,0.26141528,704.21,702.98,0.28450311]
[1735096305775,0.26141528,704.2,702.98,0.28450311]
[1735096305976,0.26141528,704.19,702.98,0.28450311]
[1735096306176,0.26141528,704.18,702.98,0.28450311]
[1735096306475,0.28399006,704.25,702.98,0.28450311]
[1735096306677,0.2614156,704.24,702.98,0.28450311]
[1735096310470,0.28399006,704.25,702.98,0.28450311]
[1735096310675,0.26141598,704.24,702.98,0.28450311]
[1735096311380,0.26142534,704.23,702.98,0.28450311]
[1735096311581,0.26142534,704.22,702.98,0.28450311]
[1735096311775,0.28399006,704.25,702.98,0.28450311]
[1735096311776,0.26142534,704.21,702.98,0.28450311]
[1735096311977,0.26142534,704.2,702.98,0.28450311]
[1735096312178,0.26142534,704.19,702.98,0.28450311]
[1735096312377,0.26142534,704.18,702.98,0.28450311]
[1735096312578,0.26142534,704.17,702.98,0.28450311]
[1735096312773,0.26142534,704.16,702.98,0.28450311]
[1735096312980,0.26142534,704.15,702.98,0.28450311]
[1735096313279,0.26142534,704.14,702.98,0.28450311]
[1735096313480,0.26140934,704.13,702.98,0.28450311]
[1735096313675,0.26140934,704.12,702.98,0.28450311]
[1735096313876,0.26140934,704.11,702.98,0.28450311]
[1735096314180,0.26140934,704.1,702.98,0.28450311]
[1735096314380,0.26140934,704.09,702.98,0.28450311]
[1735096314574,0.26140934,704.08,702.98,0.28450311]
[1735096314778,0.26140934,704.07,702.98,0.28450311]
[1735096314978,0.28399006,704.25,702.98,0.28450311]
[1735096314979,0.26140934,704.06,702.98,0.28450311]
[1735096315178,0.26140934,704.05,702.98,0.28450311]
[1735096315380,0.26140934,704.04,702.98,0.28450311]
[1735096315574,0.26140934,704.03,702.98,0.28450311]
[1735096315779,0.26140934,704.02,702.98,0.28450311]
[1735096315979,0.26140934,704.01,702.98,0.28450311]
[1735096316280,0.2614013,704.0,702.98,0.28450311]
[1735096316475,0.28399006,704.25,702.98,0.28450311]
[1735096316476,0.2614013,703.99,702.98,0.28450311]
[1735096316673,0.2614013,703.98,702.98,0.28450311]
[1735096316876,0.28399006,704.25,702.98,0.28450311]
[1735096317077,0.26141395,704.24,702.98,0.28450311]
[1735096319783,0.26143764,704.23,702.98,0.28450311]
[1735096319983,0.26143764,704.22,702.98,0.28450311]
[1735096320181,0.26143764,704.21,702.98,0.28450311]
[1735096320381,0.26143764,704.2,702.98,0.28450311]
[1735096320585,0.26143764,704.19,702.98,0.28450311]
[1735096320778,0.26143764,704.18,702.98,0.28450311]
[1735096320984,0.26143764,704.17,702.98,0.28450311]
[1735096321283,0.26143694,704.16,702.98,0.28450311]
[1735096321484,0.26143694,704.15,702.98,0.28450311]
[1735096321677,0.26143694,704.14,702.98,0.28450311]
[1735096321882,0.26143694,704.13,702.98,0.28450311]
[1735096322183,0.26143694,704.12,702.98,0.28450311]
[1735096322383,0.26143694,704.11,702.98,0.28450311]
[1735096322584,0.26143694,704.1,702.98,0.28450311]
[1735096322783,0.26143694,704.09,702.98,0.28450311]
[1735096322984,0.26143694,704.08,702.98,0.28450311]
[1735096323183,0.26143694,704.07,702.98,0.28450311]
[1735096323380,0.26143694,704.06,702.98,0.28450311]
[1735096323582,0.26145035,704.05,702.98,0.28450311]
[1735096323787,0.26145035,704.04,702.98,0.28450311]
[1735096324085,0.26145035,704.03,702.98,0.28450311]
[1735096324285,0.26145035,704.02,702.98,0.28450311]
[1735096324585,0.26145035,704.01,702.98,0.28450311]
[1735096324779,0.26145035,704.0,702.98,0.28450311]
[1735096324979,0.26145035,703.99,702.98,0.28450311]
[1735096325183,0.26145035,703.98,702.98,0.28450311]
[1735096325382,0.26145035,703.97,702.98,0.28450311]
[1735096325581,0.26145035,703.96,702.98,0.28450311]
[1735096325785,0.26145035,703.95,702.98,0.28450311]
[1735096325979,0.26145035,703.94,702.98,0.28450311]
[1735096326182,0.28399006,704.25,702.98,0.28450311]
[1735096326183,0.26145035,703.93,702.98,0.28450311]
[1735096326379,0.26148425,703.92,702.98,0.28450311]
[1735096326581,0.26148425,703.91,702.98,0.28450311]
[1735096326783,0.26148425,703.9,702.98,0.28450311]
[1735096326984,0.26148425,703.89,702.98,0.28450311]
[1735096327182,0.26148425,703.88,702.98,0.28450311]
[1735096327486,0.26148425,703.87,702.98,0.28450311]
[1735096327683,0.26148425,703.86,702.98,0.28450311]
[1735096327879,0.26148425,703.85,702.98,0.28450311]
[1735096328084,0.26148425,703.84,702.98,0.28450311]
[1735096328284,0.26148425,703.83,702.98,0.28450311]
[1735096328487,0.26148425,703.82,702.98,0.28450311]
[1735096328687,0.26148425,703.81,702.98,0.28450311]
[1735096328988,0.26148425,703.8,702.98,0.28450311]
[1735096329184,0.26150195,703.79,702.98,0.28450311]
[1735096329381,0.26150195,703.78,702.98,0.28450311]
[1735096329584,0.26150195,703.77,702.98,0.28450311]
[1735096329786,0.26150195,703.76,702.98,0.28450311]
[1735096329983,0.26150195,703.75,702.98,0.28450311]
[1735096330187,0.26150195,703.74,702.98,0.28450311]
[1735096330390,0.26150195,703.73,702.98,0.28450311]
[1735096330589,0.26150195,703.72,702.98,0.28450311]
[1735096330891,0.28399006,704.25,702.98,0.28450311]
[1735096331389,0.26149269,704.24,702.98,0.28450311]
[1735096331590,0.28399006,704.25,702.98,0.28450311]
[1735096332290,0.26149277,704.24,702.98,0.28450311]
[1735096332588,0.26149299,704.23,702.98,0.28450311]
[1735096332788,0.26149299,704.22,702.98,0.28450311]
[1735096332989,0.26149299,704.21,702.98,0.28450311]
[1735096333185,0.26149299,704.2,702.98,0.28450311]
[1735096333389,0.26149299,704.19,702.98,0.28450311]
[1735096333685,0.26149299,704.18,702.98,0.28450311]
[1735096333889,0.28399006,704.25,702.98,0.28450311]
[1735096334090,0.26152614,704.24,702.98,0.28450311]
[1735096335489,0.26153383,704.23,702.98,0.28450311]
[1735096335688,0.26153383,704.22,702.98,0.28450311]
[1735096335884,0.26153383,704.21,702.98,0.28450311]
[1735096336090,0.26153383,704.2,702.36,1.04078362]
[1735096336287,0.28399006,704.25,702.37,0.2847502]
[1735096336288,0.26153383,704.19,702.37,0.2847502]
[1735096336487,0.26153383,704.18,702.37,0.2847502]
[1735096336685,0.26153383,704.17,702.37,0.2847502]
[1735096336888,0.28399006,704.25,702.37,0.2847502]
[1735096336889,0.26153383,704.16,702.37,0.2847502]
[1735096337094,0.26153383,704.15,702.37,0.2847502]
[1735096337390,1.31691578,704.14,702.37,0.2847502]
[1735096337691,0.26153383,704.13,702.37,0.2847502]
[1735096337986,0.26154064,704.12,702.37,0.2847502]
[1735096338189,0.26154064,704.11,702.37,0.2847502]
[1735096338392,0.26154064,704.1,702.37,0.2847502]
[1735096338593,0.26154064,704.09,702.37,0.2847502]
[1735096338794,0.26154064,704.08,702.37,0.2847502]
[1735096338989,0.26154064,704.07,702.37,0.2847502]
[1735096339190,0.26154064,704.06,702.37,0.2847502]
[1735096339495,0.26154064,704.05,702.45,1.04078362]
[1735096339699,0.26154064,704.04,702.45,1.04078362]
[1735096339894,1.05538195,704.11,702.45,1.04078362]
[1735096339895,0.26154064,704.03,702.45,1.04078362]
[1735096340089,0.26154064,704.02,702.45,1.04078362]
[1735096340292,0.28399006,704.25,702.37,0.2847502]
[1735096340293,0.26154064,704.01,702.37,0.2847502]
[1735096340490,0.26154064,704.0,702.37,0.2847502]
[1735096340794,0.26152522,703.99,702.37,0.2847502]
[1735096340990,0.26152522,703.98,702.37,0.2847502]
[1735096341191,0.26152522,703.97,702.37,0.2847502]
[1735096341393,0.26152522,703.96,702.37,0.2847502]
[1735096341590,0.26152522,703.95,702.37,0.2847502]
[1735096341797,0.26152522,703.94,702.37,0.2847502]
[1735096341989,0.28399006,704.25,702.37,0.2847502]
[1735096342294,0.26154164,704.24,702.37,0.2847502]
[1735096343395,0.26156137,704.23,702.37,0.2847502]
[1735096343594,0.26156137,704.22,702.37,0.2847502]
[1735096343795,0.26156137,704.21,702.37,0.2847502]
[1735096344096,0.26156137,704.2,702.37,0.2847502]
[1735096344295,0.26156137,704.19,702.37,0.2847502]
[1735096344488,0.26156137,704.18,702.37,0.2847502]
[1735096344692,0.26156137,704.17,702.37,0.2847502]
[1735096344893,0.26156137,704.16,702.37,0.2847502]
[1735096345135,0.26156137,704.15,702.37,0.2847502]
[1735096345429,0.26156137,704.14,702.37,0.2847502]
[1735096345751,0.26156137,704.13,702.37,0.2847502]
[1735096345996,0.26156137,704.12,702.37,0.2847502]
[1735096346190,0.28399006,704.25,702.37,0.2847502]
[1735096346393,0.26153719,704.24,702.37,0.2847502]
[1735096347497,0.28399006,704.25,702.37,0.2847502]
[1735096347498,0.26153719,704.23,702.37,0.2847502]
[1735096347696,0.26153719,704.22,702.37,0.2847502]
[1735096347992,0.26153719,704.21,702.37,0.2847502]
[1735096348196,0.26153719,704.2,702.37,0.2847502]
[1735096348390,0.26153719,704.19,702.37,0.2847502]
[1735096348596,0.26153719,704.18,702.37,0.2847502]
[1735096348796,0.26153719,704.17,702.37,0.2847502]
[1735096348992,0.26147766,704.16,702.37,0.2847502]
[1735096349297,0.26147766,704.15,702.37,0.2847502]
[1735096349496,0.28399006,704.25,702.37,0.2847502]
[1735096349497,0.26147766,704.14,702.37,0.2847502]
[1735096349696,0.26147766,704.13,702.37,0.2847502]
[1735096349896,0.26147766,704.12,702.48,1.04078362]
[1735096350096,0.26147766,704.11,702.48,1.04078362]
[1735096350291,0.26147766,704.1,702.48,1.04078362]
[1735096350494,0.26147766,704.09,702.48,1.04078362]
[1735096350695,0.26147766,704.08,702.48,1.04078362]
[1735096350892,0.26147766,704.07,702.48,1.04078362]
[1735096351096,0.26147766,704.06,702.54,1.04078362]
[1735096351397,0.26147766,704.05,702.54,1.04078362]
[1735096351591,0.26147766,704.04,702.54,1.04078362]
[1735096351798,0.26145808,704.03,702.54,1.04078362]
[1735096351993,0.26145808,704.02,702.54,1.04078362]
[1735096352198,0.26145808,704.02,702.37,0.2847502]
[1735096352199,0.26145808,704.01,702.52,1.04078362]
[1735096352399,0.26145808,704.0,702.52,1.04078362]
[1735096352599,0.26145808,703.99,702.52,1.04078362]
[1735096352794,0.26145808,703.98,702.52,1.04078362]
[1735096352991,0.26145808,703.97,702.52,1.04078362]
[1735096353197,0.26145808,703.96,702.52,1.04078362]
[1735096353396,0.26145808,703.95,702.68,1.04078362]
[1735096353592,0.28399006,704.25,702.68,1.04078362]
[1735096353593,0.26145808,703.94,702.68,1.04078362]
[1735096353793,0.26145808,703.93,702.68,1.04078362]
[1735096353997,0.26145808,703.92,702.68,1.04078362]
[1735096354197,0.26146756,703.91,702.68,1.04078362]
[1735096354398,0.26146756,703.9,702.63,1.04078362]
[1735096354599,0.26145144,703.89,702.63,1.04078362]
[1735096354796,0.26145144,703.88,702.63,1.04078362]
[1735096354996,0.26145144,703.87,702.63,1.04078362]
[1735096355193,0.28399006,704.25,702.63,1.04078362]
[1735096355194,0.26145144,703.86,702.63,1.04078362]
[1735096355496,0.26145144,703.85,702.63,1.04078362]
[1735096355698,0.26145144,703.84,702.71,1.04078362]
[1735096355893,0.26145144,703.83,702.71,1.04078362]
[1735096356097,0.26145144,703.82,702.71,1.04078362]
[1735096356298,0.26145144,703.81,702.71,1.04078362]
[1735096356500,0.26145144,703.8,702.71,1.04078362]
[1735096356701,0.26145144,703.79,702.72,1.04078362]
[1735096356899,0.26145144,703.78,702.72,1.04078362]
[1735096357099,0.26145144,703.77,702.72,1.04078362]
[1735096357295,0.26144541,703.76,702.72,1.04078362]
[1735096357499,0.26144541,703.76,702.38,0.82037382]
[1735096357500,0.26144541,703.75,702.71,1.04078362]
[1735096357797,0.26144541,703.74,702.71,1.04078362]
[1735096357995,0.26144541,703.73,702.71,1.04078362]
[1735096358197,0.26144541,703.72,702.71,1.04078362]
[1735096358399,0.26144541,703.71,702.71,1.04078362]
[1735096358600,0.26144541,703.7,702.71,1.04078362]
[1735096358801,0.26144541,703.69,702.71,1.04078362]
[1735096359001,0.28399006,704.25,702.63,1.04078362]
[1735096359198,0.26145685,704.24,702.63,1.04078362]
[1735096359402,0.26145685,704.23,702.63,1.04078362]
[1735096359602,0.26145685,704.22,702.63,1.04078362]
[1735096359797,0.26145685,704.22,702.41,1.04078362]
[1735096359798,0.26145685,704.21,702.64,1.04078362]
[1735096360003,0.26147298,704.2,702.64,1.04078362]
[1735096360204,0.26147298,704.19,702.64,1.04078362]
[1735096360405,0.26147298,704.18,702.64,1.04078362]
[1735096360605,0.26147298,704.17,702.64,1.04078362]
[1735096360806,0.26147298,704.16,702.64,1.04078362]
[1735096361000,0.26147298,704.15,702.59,1.04078362]
[1735096361204,0.26147298,704.14,702.59,1.04078362]
[1735096361501,0.26147298,704.13,702.59,1.04078362]
[1735096361703,0.26147298,704.12,702.59,1.04078362]
[1735096361900,0.26147298,704.11,702.59,1.04078362]
[1735096362110,0.26147298,704.1,702.59,1.04078362]
[1735096362307,0.26147298,704.09,702.48,1.04078362]
[1735096362502,0.26147298,704.08,702.48,1.04078362]
[1735096362703,0.26147298,704.07,702.48,1.04078362]
[1735096362906,0.26148245,704.06,702.48,1.04078362]
[1735096363103,0.26148245,704.05,702.48,1.04078362]
[1735096363305,0.26148245,704.04,702.48,1.04078362]
[1735096363507,0.26148245,704.03,702.51,1.04078362]
[1735096363707,0.26148245,704.02,702.51,1.04078362]
[1735096363906,0.26148245,704.01,702.51,1.04078362]
[1735096364203,0.26148245,704.0,702.51,1.04078362]
[1735096364409,0.26148245,703.99,702.51,1.04078362]
[1735096364709,0.26148245,703.98,702.53,1.04078362]
[1735096364908,0.26148245,703.97,702.53,1.04078362]
[1735096365108,0.26148245,703.96,702.53,1.04078362]
[1735096365407,0.26148245,703.95,702.53,1.04078362]
[1735096365709,0.261501,703.94,702.49,1.04078362]
[1735096365901,0.261501,703.93,702.49,1.04078362]
[1735096366101,0.261501,703.92,702.49,1.04078362]
[1735096366303,0.261501,703.91,702.49,1.04078362]
[1735096366504,0.261501,703.9,702.49,1.04078362]
[1735096366704,0.261501,703.89,702.42,1.04078362]
[1735096366908,0.261501,703.88,702.42,1.04078362]
[1735096367111,0.261501,703.87,702.42,1.04078362]
[1735096367309,0.28399006,704.25,702.42,1.04078362]
[1735096367310,0.261501,703.86,702.42,1.04078362]
[1735096367610,0.261501,703.85,702.42,1.04078362]
[1735096367804,0.261501,703.84,702.4,1.04078362]
[1735096368008,0.261501,703.83,702.4,1.04078362]
[1735096368310,0.26154194,703.82,702.4,1.04078362]
[1735096368508,0.26154194,703.81,702.41,0.28473398]
[1735096368810,1.05538195,704.13,702.41,0.28473398]
[1735096368811,0.26154194,703.8,702.41,0.28473398]
[1735096369009,0.26154194,703.79,702.41,0.28473398]
[1735096369210,0.26153656,703.78,702.41,0.28473398]
[1735096369411,0.26153656,703.77,702.45,1.04078362]
[1735096369606,0.26153656,703.76,702.46,0.28471372]
[1735096369805,0.26153656,703.75,702.46,0.28471372]
[1735096370111,0.26153656,703.74,702.46,0.28471372]
[1735096370311,0.28399006,704.25,702.46,0.28471372]
[1735096370312,0.26153656,703.73,702.46,0.28471372]
[1735096370511,0.28399006,704.25,702.46,0.28471372]
[1735096370512,0.26153656,703.72,702.46,0.28471372]
[1735096370711,0.26152332,703.71,702.46,0.28471372]
[1735096371012,0.26152332,703.7,702.46,0.28471372]
[1735096371208,0.26152332,703.69,702.46,0.28471372]
[1735096371409,0.28399006,704.25,702.46,0.28471372]
[1735096371612,0.26156357,704.24,702.46,0.28471372]
[1735096371810,0.28400215,704.22,702.46,0.28471372]
[1735096372005,0.26156357,704.21,702.46,0.28471372]
[1735096372211,0.26156357,704.2,702.46,0.28471372]
[1735096372404,0.28401829,704.18,702.46,0.28471372]
[1735096372609,0.26156357,704.17,702.46,0.28471372]
[1735096372806,0.28403039,704.15,702.46,0.28471372]
[1735096373009,0.26156357,704.14,702.46,0.28471372]
[1735096373212,0.26156357,704.13,702.46,0.28471372]
[1735096373414,0.26156357,704.12,702.46,0.28471372]
[1735096373711,0.28403039,704.15,702.46,0.28471372]
[1735096373712,0.26156357,704.11,702.46,0.28471372]
[1735096373911,0.26156357,704.1,702.46,0.28471372]
[1735096374112,1.05538195,704.08,702.46,0.28471372]
[1735096374312,0.26156357,704.07,702.46,0.28471372]
[1735096374512,0.26156357,704.06,702.46,0.28471372]
[1735096374710,0.5456343,704.05,702.46,0.28471372]
[1735096374907,0.26156357,704.04,702.46,0.28471372]
[1735096375106,0.26156357,704.03,702.46,0.28471372]
[1735096375305,0.26156357,704.02,702.46,0.28471372]
[1735096375513,0.26156357,704.01,702.46,0.28471372]
[1735096375814,0.26156357,704.0,702.46,0.28471372]
[1735096376017,0.26156357,703.99,702.46,0.28471372]
[1735096376215,0.26156357,703.98,702.46,0.28471372]
[1735096376413,0.26156357,703.97,702.46,0.28471372]
[1735096376614,0.26156357,703.96,702.46,0.28471372]
[1735096376814,0.26156357,703.95,702.46,0.28471372]
[1735096377018,0.26156357,703.94,702.46,0.28471372]
[1735096377217,0.26156357,703.93,702.46,0.28471372]
[1735096377416,0.26167354,703.92,702.46,0.28471372]
[1735096377617,0.26167354,703.91,702.46,0.28471372]
[1735096377817,0.26167354,703.9,702.46,0.28471372]
[1735096378119,0.26167354,703.89,702.46,0.28471372]
[1735096378317,6.54533419,704.12,702.46,0.28471372]
[1735096378318,0.54581288,703.88,702.46,0.28471372]
[1735096378517,0.54581691,703.87,702.46,0.28471372]
[1735096378715,0.26167354,703.86,702.46,0.28471372]
[1735096378915,0.28414337,703.87,702.46,0.28471372]
[1735096378916,0.26167354,703.85,702.46,0.28471372]
[1735096379115,0.54582902,703.84,702.46,0.28471372]
[1735096379436,0.28415548,703.84,702.46,0.28471372]
[1735096379619,0.26168077,703.83,702.46,0.28471372]
[1735096379823,0.54584433,703.82,702.46,0.28471372]
[1735096380119,0.54584837,703.81,702.46,0.28471372]
[1735096380425,0.5458524,703.8,702.46,0.28471372]
[1735096380721,0.26168077,703.79,702.46,0.28471372]
[1735096380912,0.26168077,703.78,702.46,0.28471372]
[1735096381117,0.26168077,703.77,702.46,0.28471372]
[1735096381323,0.26168077,703.79,702.46,0.28471372]
[1735096381519,0.26168077,703.78,702.46,0.28471372]
[1735096381719,0.26168077,703.77,702.46,0.28471372]
[1735096381919,0.26168077,703.76,702.46,0.28471372]
[1735096382221,0.26168077,703.75,702.46,0.28471372]
[1735096382421,0.26168077,703.74,702.46,0.28471372]
[1735096382613,0.28417163,703.8,702.46,0.28471372]
[1735096382614,0.26168077,703.73,702.46,0.28471372]
[1735096382815,0.28417163,703.8,702.46,0.28471372]
[1735096382816,0.26168077,703.72,702.46,0.28471372]
[1735096383021,0.26168077,703.71,702.46,0.28471372]
[1735096383322,0.54589279,703.7,702.46,0.28471372]
[1735096383526,0.26168077,703.69,702.46,0.28471372]
[1735096383917,0.26168077,703.68,702.46,0.28471372]
[1735096384123,0.26168077,703.67,702.46,0.28471372]
[1735096384324,0.26168077,703.66,702.46,0.28471372]
[1735096384621,0.26168077,703.65,701.58,1.04078362]
[1735096384926,0.6417456,704.13,701.58,1.04078362]
[1735096384927,0.54591702,703.64,701.68,0.28503021]
[1735096385120,0.26168077,703.63,701.68,0.28503021]
[1735096385321,0.26168077,703.62,701.68,0.28503021]
[1735096385621,0.26168077,703.61,701.68,0.28503021]
[1735096385827,0.28423625,703.64,701.68,0.28503021]
[1735096385828,0.26168077,703.6,701.68,0.28503021]
[1735096386026,0.28423625,703.64,701.68,0.28503021]
[1735096386027,0.26168077,703.59,701.68,0.28503021]
[1735096386235,0.26168077,703.58,701.68,0.28503021]
[1735096386427,0.26168077,703.57,701.68,0.28503021]
[1735096386621,0.26168077,703.56,701.68,0.28503021]